bitfinex-derivatives/quotes_ETHF0:USTF0_20250708
["timestamp","ask_amount","ask_price","bid_price","bid_amount"]
[1751997123848,0.21871723,2620.9,2620.8,33.40034]
[1751997124450,0.21871723,2620.9,2620.8,33.39834]
[1751997124646,3.42969525,2621.4,2620.8,32.6353]
[1751997124846,1.38779638,2621.9,2621.6,3.2078]
[1751997125045,13.01562396,2622.8,2622.4,0.76257]
[1751997125249,11.49099191,2623.2,2623.1,0.76237]
[1751997125449,3.2078,2623.6,2623.0,3.2078]
[1751997125650,13.39633191,2624.0,2622.6,3.2078]
[1751997125651,4.4631,2623.5,2622.6,3.2078]
[1751997125849,4.4631,2623.5,2622.2,3.2078]
[1751997125850,3.2078,2623.1,2622.2,3.2078]
[1751997126046,0.76261,2622.3,2621.9,3.2078]
[1751997126247,3.1613,2623.0,2621.6,26.716]
[1751997126248,3.2078,2623.1,2622.2,3.2078]
[1751997126448,3.40373842,2622.7,2621.8,3.2078]
[1751997126648,6.61153842,2622.4,2621.8,3.2078]
[1751997126955,3.2078,2622.0,2621.3,3.2078]
[1751997127154,6.61153842,2621.4,2620.5,3.2078]
[1751997127350,1.90703,2621.6,2620.5,3.2078]
[1751997127351,3.97076,2621.1,2620.5,3.2078]
[1751997127546,2.01828,2621.0,2620.5,3.9709]
[1751997127750,0.76301,2620.9,2620.5,3.2078]
[1751997127950,1.2553,2620.8,2620.5,3.2078]
[1751997128552,0.76308,2620.7,2620.5,3.2078]
[1751997128747,4.5199,2620.6,2619.7,3.2078]
[1751997128953,3.2078,2620.3,2619.7,3.2078]
[1751997129158,3.03093,2620.2,2619.7,3.2078]
[1751997129451,3.2078,2620.3,2619.8,1.75848312]
[1751997129657,0.68064379,2622.0,2619.8,1.75848312]
[1751997129658,0.9556,2622.2,2622.1,0.76266]
[1751997129856,0.9556,2622.2,2622.0,3.97047]
[1751997130049,0.9556,2622.2,2622.0,3.2078]
[1751997130351,0.9556,2622.2,2621.9,3.2078]
[1751997130552,0.9556,2622.9,2621.9,4.5353]
[1751997130753,5.68303637,2623.8,2622.4,0.76256]
[1751997130754,1.9674,2623.0,2622.4,0.76256]
[1751997130950,1.3121,2622.8,2622.5,3.2078]
[1751997131151,1.6109,2623.0,2622.8,0.76245]
[1751997131348,3.08173,2623.3,2622.7,4.54003637]
[1751997131759,2.3194,2623.3,2622.7,3.77756637]
[1751997132057,2.3194,2623.3,2623.0,0.76239]
[1751997132259,0.9556,2623.2,2622.6,3.2078]
[1751997132556,3.2078,2623.0,2622.3,3.2078]
[1751997132762,0.76247,2622.8,2622.3,3.97039]
[1751997133059,3.08189,2622.7,2622.3,3.2078]
[1751997133259,3.08189,2622.7,2622.3,3.97039]
[1751997133260,2.3194,2622.7,2622.3,3.97039]
[1751997133464,1.3638,2622.7,2622.4,0.76257]
[1751997133655,3.2078,2623.0,2622.4,3.77756637]
[1751997133858,3.08184,2622.9,2622.4,3.77756637]
[1751997134156,5.65711891,2624.2,2622.9,1.90607]
[1751997134357,0.76211,2624.0,2623.9,3.2078]
[1751997134562,0.9556,2624.0,2623.9,3.2078]
[1751997134856,1.3821,2624.1,2623.9,3.2078]
[1751997135163,0.6457,2624.3,2624.0,3.77756637]
[1751997135363,0.9556,2624.2,2623.9,3.2078]
[1751997135565,0.76211,2624.0,2623.9,3.2078]
[1751997135759,1.71771,2624.0,2623.9,3.2078]
[1751997136059,3.09981,2624.0,2623.9,3.2078]
[1751997136364,2.3377,2624.0,2623.9,3.2078]
[1751997136862,1.6013,2624.3,2623.9,6.98536637]
[1751997137563,0.76206,2624.2,2623.9,3.2078]
[1751997137758,1.2845,2624.1,2623.9,3.2078]
[1751997138159,1.2845,2624.1,2623.4,3.2078]
[1751997138362,1.2845,2624.1,2623.7,3.2078]
[1751997138858,1.2845,2624.1,2623.4,3.2078]
[1751997139054,1.2845,2624.1,2623.5,0.52384556]
[1751997139259,0.76221,2623.7,2623.6,0.52356301]
[1751997139665,0.7622,2623.7,2623.6,0.52357955]
[1751997139861,0.76218,2623.8,2623.6,0.52357955]
[1751997140062,2.0467,2623.7,2623.4,3.2078]
[1751997140264,1.2845,2623.7,2623.5,0.52351303]
[1751997140463,3.00231,2623.7,2623.4,3.2078]
[1751997140666,0.9556,2623.7,2623.4,3.2078]
[1751997140863,0.76213,2623.9,2623.5,0.52353472]
[1751997141061,0.76216,2623.8,2623.7,3.2078]
[1751997141260,2.13385,2623.9,2623.4,3.2078]
[1751997141464,2.13384,2623.9,2623.6,0.76221]
[1751997141657,2.13384,2623.9,2623.4,3.2078]
[1751997141658,1.3717,2623.9,2623.4,3.2078]
[1751997141856,1.3717,2623.9,2623.7,3.2078]
[1751997141857,2.13384,2623.9,2623.7,3.2078]
[1751997142461,0.9556,2624.0,2623.8,0.5235022]
[1751997142660,0.76209,2624.1,2623.8,0.76214]
[1751997142965,1.76549,2624.1,2623.9,0.76213]
[1751997143167,3.13719,2624.1,2623.9,0.76213]
[1751997143365,0.76211,2624.0,2623.8,0.76216]
[1751997143668,2.3751,2624.1,2624.0,0.76211]
[1751997143867,1.76549,2624.1,2623.9,0.76212]
[1751997144058,1.3672,2624.0,2623.9,0.76212]
[1751997144458,1.3672,2624.0,2623.7,6.98536637]
[1751997144459,2.12931,2624.0,2623.8,0.76214]
[1751997144660,3.13272,2624.0,2623.8,0.76215]
[1751997145164,3.13272,2624.0,2623.9,0.52431768]
[1751997145360,2.3706,2624.0,2623.9,5.06401405]
[1751997145566,0.6457,2624.3,2624.2,0.76205]
[1751997145761,0.98072723,2624.4,2624.2,4.53960637]
[1751997146068,3.13262,2624.3,2624.2,3.77756637]
[1751997146269,3.13262,2624.3,2624.2,0.52432392]
[1751997146861,2.3706,2624.3,2624.1,0.76207]
[1751997147061,0.76206,2624.2,2624.0,3.96989]
[1751997147370,0.76208,2624.1,2624.0,3.96991]
[1751997147570,0.76208,2624.1,2624.0,4.49421202]
[1751997147769,2.13078,2624.1,2624.0,3.73210202]
[1751997148367,3.13418,2624.1,2624.0,3.73210202]
[1751997148967,2.3721,2624.1,2624.0,7.74747637]
[1751997149266,10.5799,2624.1,2623.3,1.65170116]
[1751997149568,0.76234,2623.2,2623.1,1.65170116]
[1751997149759,1.9057,2623.5,2623.1,1.74354105]
[1751997149760,1.0034,2623.5,2623.1,1.74354105]
[1751997149964,1.0034,2623.8,2623.4,3.77756637]
[1751997150159,1.0034,2623.8,2623.5,1.74354105]
[1751997150467,1.76557,2623.8,2623.4,3.77756637]
[1751997150662,1.2568,2623.7,2623.6,0.7622]
[1751997150860,3.96989,2624.1,2623.5,1.90564]
[1751997151059,3.96989,2624.1,2624.0,0.76211]
[1751997151060,3.2078,2624.1,2624.0,0.76211]
[1751997151271,4.10801723,2624.4,2624.2,0.76205]
[1751997151470,1.90361723,2624.4,2624.2,0.76205]
[1751997151772,3.16041723,2624.4,2624.2,0.76203]
[1751997152074,3.92242723,2624.4,2624.2,0.76203]
[1751997152272,3.92242723,2624.4,2624.3,0.76202]
[1751997152474,0.76202,2624.3,2624.2,0.76203]
[1751997152773,0.76202,2624.3,2623.9,31.8198]
[1751997152774,0.76208,2624.1,2624.0,28.613]
[1751997152971,2.3003,2624.3,2623.7,2.57656]
[1751997153165,2.3003,2624.3,2624.2,0.76205]
[1751997153775,3.06232,2624.3,2624.1,0.76206]
[1751997153969,0.76209,2624.1,2623.6,3.2078]
[1751997154170,2.3003,2624.0,2623.7,28.561]
[1751997154370,1.0034,2623.9,2623.6,3.2078]
[1751997154572,0.21871723,2624.4,2623.8,1.90539]
[1751997154771,1.2969,2624.3,2624.2,0.76205]
[1751997155173,2.05894,2624.3,2624.1,0.76206]
[1751997155373,1.2969,2624.3,2624.2,0.76205]
[1751997155576,9.5047,2624.3,2623.3,3.2078]
[1751997155778,0.76224,2623.6,2623.2,3.77756637]
[1751997155970,3.2078,2623.5,2623.4,0.76226]
[1751997156372,1.45071,2623.7,2623.5,0.76225]
[1751997156568,1.45071,2623.7,2623.5,0.76223]
[1751997156773,0.76226,2623.5,2623.4,0.76226]
[1751997157171,0.6885,2623.7,2623.1,1.65554126]
[1751997157172,0.76228,2623.4,2623.1,1.65554126]
[1751997157371,0.76228,2623.4,2623.3,0.76231]
[1751997157372,0.76229,2623.4,2623.3,0.76231]
[1751997157572,3.97007,2623.5,2623.4,0.76228]
[1751997157775,1.45071,2623.7,2623.5,0.76223]
[1751997157969,0.6885,2623.7,2623.6,2.51110766]
[1751997158176,0.6885,2623.7,2623.6,0.76222]
[1751997158878,0.6885,2623.7,2623.6,2.51348638]
[1751997159080,0.76213,2624.0,2623.9,0.76213]
[1751997159281,0.6446,2624.0,2623.9,2.51308641]
[1751997159589,0.6446,2624.0,2623.9,1.75095641]
[1751997159873,1.648,2624.0,2623.9,4.17485796]
[1751997160070,0.6446,2624.0,2623.9,4.74340944]
[1751997160277,1.648,2624.0,2623.9,4.74340944]
[1751997160778,0.6446,2624.0,2623.9,4.74340944]
[1751997160979,1.648,2624.0,2623.9,4.74340944]
[1751997161871,0.6446,2624.0,2623.9,4.74340944]
[1751997162278,3.2078,2624.1,2624.0,0.76211]
[1751997162477,3.2078,2624.1,2624.0,2.51306641]
[1751997163180,3.2078,2624.1,2624.0,4.74338944]
[1751997164072,1.0034,2624.3,2624.2,0.76205]
[1751997164270,1.76542,2624.3,2624.2,2.51300641]
[1751997164774,1.76542,2624.3,2624.2,4.73957328]
[1751997164980,1.0034,2624.3,2624.2,4.73957328]
[1751997165379,1.0034,2624.3,2624.2,2.51300641]
[1751997166280,1.76542,2624.3,2624.2,2.51300641]
[1751997166675,1.0034,2624.3,2624.2,2.51300641]
[1751997166876,1.76547,2624.3,2624.2,4.1830576]
[1751997167081,1.76547,2624.3,2624.2,2.51300641]
[1751997167581,1.0034,2624.3,2624.2,2.51300641]
[1751997167983,1.76547,2624.3,2624.2,2.51300641]
[1751997168179,1.0034,2624.3,2624.2,4.73957328]
[1751997168383,1.0034,2624.3,2624.2,2.51300641]
[1751997169582,1.76547,2624.3,2624.2,2.51300641]
[1751997169984,1.0034,2624.3,2624.2,2.51300641]
[1751997170282,1.76547,2624.3,2624.2,5.1160353]
[1751997170482,1.0034,2624.3,2624.2,5.1160353]
[1751997170783,0.21871723,2624.4,2624.3,0.76207]
[1751997170982,0.21871723,2624.4,2624.3,5.86151018]
[1751997171174,0.21871723,2624.4,2624.3,2.51302641]
[1751997171381,0.21871723,2624.4,2624.3,5.86414702]
[1751997171682,0.98076723,2624.4,2624.3,2.51302641]
[1751997171883,2.53031723,2624.4,2624.3,2.51302641]
[1751997172183,1.22211723,2624.4,2624.3,2.51302641]
[1751997172388,0.21871723,2624.4,2624.3,2.51302641]
[1751997173484,1.92356723,2624.4,2624.3,1.75095641]
[1751997173679,3.23176723,2624.4,2624.3,1.75095641]
[1751997174381,6.43956723,2624.4,2624.3,5.87107544]
[1751997174585,6.43956723,2624.4,2624.3,4.1920131]
[1751997175086,0.21871723,2624.4,2624.3,5.89681598]
[1751997176684,0.21871723,2624.4,2624.3,8.1354649]
[1751997177381,0.21871723,2624.4,2624.3,8.8161649]
[1751997177582,0.21871723,2624.4,2624.3,10.1773649]
[1751997177781,0.21871723,2624.4,2624.3,34.82251598]
[1751997177982,1.16151723,2624.4,2624.3,2.51302641]
[1751997178186,0.21871723,2624.4,2624.3,32.98644202]
[1751997178381,0.21871723,2624.4,2624.3,34.10507544]
[1751997179185,4.1506,2625.9,2624.3,38.36174598]
[1751997179393,3.2078,2625.2,2624.8,1.67950948]
[1751997179687,3.2078,2625.2,2625.1,0.76183]
[1751997179887,0.76187,2625.0,2624.9,28.239]
[1751997180091,0.76187,2625.0,2624.9,30.74514393]
[1751997180291,1.9627,2625.1,2625.0,0.76187]
[1751997180491,2.72454,2625.1,2625.0,2.50613393]
[1751997180694,0.76175,2625.5,2625.4,0.76174]
[1751997180889,0.76173,2625.5,2625.4,2.50600393]
[1751997181095,1.3037,2625.5,2625.4,2.50600393]
[1751997181395,0.76171,2625.6,2625.5,0.76173]
[1751997181597,1.70449,2625.7,2625.6,0.7617]
[1751997181894,0.9428,2625.7,2625.6,1.26774339]
[1751997182802,3.2078,2625.9,2625.8,0.76164]
[1751997183001,3.2078,2625.9,2625.8,29.48168339]
[1751997183199,3.2078,2626.2,2626.1,0.76155]
[1751997183399,3.2078,2626.2,2626.1,1.26759339]
[1751997183592,2.66544,2626.1,2625.6,0.76169]
[1751997183792,3.2078,2625.9,2625.5,28.209]
[1751997183996,3.2078,2625.9,2625.3,1.67928319]
[1751997184192,1.90385,2626.2,2625.1,1.67928319]
[1751997184193,3.2078,2625.6,2625.1,1.67928319]
[1751997184403,0.76186,2625.1,2624.9,1.67928319]
[1751997184594,3.2078,2625.2,2624.9,0.76188]
[1751997184595,2.08267,2625.0,2624.9,0.76188]
[1751997184802,3.66467,2625.0,2624.9,1.74052578]
[1751997185004,7.9028,2625.0,2624.7,1e-08]
[1751997185302,0.76202,2624.5,2624.4,0.76203]
[1751997185506,0.9428,2624.5,2624.4,0.76205]
[1751997185702,0.9428,2624.8,2624.4,3.38378957]
[1751997185893,1.70475,2624.8,2624.7,1.67242997]
[1751997186098,2.2726,2624.8,2624.7,1.67242997]
[1751997186299,3.03453,2624.8,2624.7,1.67242997]
[1751997186506,0.76196,2624.7,2624.6,1.67242997]
[1751997186806,3.03456,2624.7,2624.3,29.87742997]
[1751997187103,0.9428,2624.6,2624.5,0.76201]
[1751997187304,2.2726,2624.6,2624.5,0.76201]
[1751997187607,2.2726,2624.6,2624.4,0.76203]
[1751997187794,0.9428,2624.5,2624.3,1.67242997]
[1751997188102,3.2078,2624.5,2624.4,0.76205]
[1751997188301,0.9428,2625.5,2624.5,1.90501]
[1751997188499,0.9428,2625.5,2624.8,3.2078]
[1751997188803,0.9428,2625.5,2624.9,3.57860869]
[1751997189102,0.9428,2625.5,2625.4,0.76176]
[1751997191007,0.9428,2625.7,2625.3,0.76177]
[1751997191200,0.76174,2625.5,2625.4,0.76175]
[1751997191408,2.10402,2625.6,2625.2,33.06564869]
[1751997191603,2.10402,2625.6,2625.4,0.76174]
[1751997191799,1.70453,2625.5,2625.4,0.76174]
[1751997192003,3.04683,2625.5,2625.4,0.76174]
[1751997192203,2.2851,2625.5,2625.4,0.76174]
[1751997192408,0.76178,2625.4,2625.2,3.96959]
[1751997192708,0.76178,2625.3,2625.2,3.2078]
[1751997193009,1.44628,2625.3,2625.2,3.96961]
[1751997193604,2.38908,2625.3,2625.2,3.96961]
[1751997194000,0.76187,2625.0,2624.9,2.43573869]
[1751997194308,0.76187,2625.0,2624.8,3.2078]
[1751997194309,0.7619,2624.9,2624.8,3.2078]
[1751997194507,3.0101,2624.9,2624.8,4.88164869]
[1751997194810,3.2078,2625.4,2625.1,0.76182]
[1751997194811,0.9428,2625.4,2625.1,0.76182]
[1751997195105,0.76184,2625.1,2625.0,1.67272103]
[1751997195307,0.9428,2625.1,2625.0,0.76187]
[1751997195709,0.6845,2625.3,2624.7,7.34136691]
[1751997195910,2.97014,2625.2,2625.1,0.76184]
[1751997196503,2.97014,2625.2,2624.8,2.2302947]
[1751997196504,2.2083,2625.2,2624.8,1.67272103]
[1751997196708,0.76193,2624.8,2624.7,1.67272103]
[1751997196908,0.76193,2624.8,2624.7,3.36180295]
[1751997197103,1.70473,2624.8,2624.7,3.36180295]
[1751997197311,1.70473,2624.8,2624.7,1.68908192]
[1751997197603,1.70473,2624.8,2624.7,2.45104192]
[1751997197810,0.9428,2624.8,2624.7,2.45104192]
[1751997198003,0.9428,2624.8,2624.7,0.76196]
[1751997198207,0.9428,2624.8,2624.7,2.45201528]
[1751997198604,1.2655,2625.0,2624.7,1.69005528]
[1751997198810,2.02738,2625.0,2624.9,0.7619]
[1751997199011,2.97018,2625.0,2624.9,0.7619]
[1751997199211,2.2083,2625.0,2624.9,0.7619]
[1751997199707,2.2083,2625.0,2624.9,2.45209447]
[1751997199907,0.6845,2625.3,2625.2,0.76181]
[1751997199908,1.6273,2625.3,2625.2,0.76181]
[1751997200108,2.3891,2625.3,2625.2,0.76181]
[1751997200409,0.9428,2625.3,2625.2,0.76181]
[1751997200915,1.70458,2625.3,2625.2,0.76181]
[1751997201111,3.05108,2625.3,2625.2,0.76181]
[1751997201413,2.2893,2625.3,2625.2,2.45481752]
[1751997201713,3.05108,2625.3,2625.2,1.69300752]
[1751997202405,4.19383,2625.3,2624.8,1.67272103]
[1751997202612,0.9851,2625.2,2625.1,0.76184]
[1751997202812,1.74691,2625.2,2625.1,1.69550024]
[1751997203007,1.74691,2625.2,2624.8,2.2302947]
[1751997203008,0.9851,2625.2,2624.8,0.76193]
[1751997203310,0.9851,2625.2,2624.7,1.67272103]
[1751997203311,0.76193,2624.8,2624.7,1.67272103]
[1751997203516,1.74703,2624.8,2624.7,2.45821713]
[1751997203814,1.74703,2624.8,2624.7,1.69627713]
[1751997204016,0.9851,2624.8,2624.7,2.45823713]
[1751997204216,1.74703,2624.8,2624.7,2.45823713]
[1751997204412,1.74703,2624.8,2624.7,4.13095816]
[1751997204712,0.9851,2624.8,2624.7,4.13095816]
[1751997205018,1.74703,2624.8,2624.7,4.13095816]
[1751997205315,1.74703,2624.8,2624.7,1.69627713]
[1751997205712,1.74703,2624.8,2624.7,2.45823713]
[1751997205913,0.9851,2624.8,2624.7,4.13095816]
[1751997206314,2.0386,2624.9,2624.8,0.76193]
[1751997206512,2.0386,2624.9,2624.7,3.36899816]
[1751997206513,0.76193,2624.8,2624.7,2.43466103]
[1751997206719,0.76193,2624.8,2624.7,4.13308551]
[1751997207013,1.74703,2624.8,2624.7,4.13308551]
[1751997207220,2.3233,2624.8,2624.7,4.13308551]
[1751997207419,3.08523,2624.8,2624.7,4.13308551]
[1751997207717,3.08523,2624.8,2624.7,4.13310551]
[1751997208114,2.3233,2624.8,2624.7,4.13310551]
[1751997208313,3.08523,2624.8,2624.7,2.46038448]
[1751997208510,3.08523,2624.8,2624.3,54.872]
[1751997208511,0.76219,2623.9,2623.8,3.3740409]
[1751997208713,2.89058,2623.9,2623.4,0.76231]
[1751997208914,0.76234,2623.4,2623.3,3.2078]
[1751997209121,0.76239,2623.3,2623.2,0.76239]
[1751997209308,1.3835,2623.3,2623.2,0.76239]
[1751997209817,2.14587,2623.3,2623.2,0.76239]
[1751997210222,3.13099,2623.3,2623.2,0.76239]
[1751997210414,0.76239,2623.3,2623.2,0.76239]
[1751997210615,0.76241,2623.2,2623.1,0.7624]
[1751997211022,2.13335,2623.4,2623.3,0.76237]
[1751997211320,3.2078,2623.7,2623.6,0.76228]
[1751997211620,5.5639,2623.7,2623.4,0.76231]
[1751997211810,0.76232,2623.5,2623.4,0.76231]
[1751997212018,0.76235,2623.4,2623.3,0.76234]
[1751997212218,0.76239,2623.3,2623.2,0.76237]
[1751997212418,1.74749,2623.3,2623.2,0.76237]
[1751997212722,3.11849,2623.3,2623.2,0.76237]
[1751997212922,3.11849,2623.3,2623.0,3.2078]
[1751997212923,2.3561,2623.3,2623.0,3.2078]
[1751997213127,1.371,2623.3,2623.2,0.76239]
[1751997214221,0.9851,2623.6,2623.0,3.2078]
[1751997214420,2.2696,2624.1,2623.6,0.76228]
[1751997214619,3.03174,2624.1,2624.0,0.76216]
[1751997215022,0.76219,2624.0,2623.9,0.76217]
[1751997215323,3.03179,2624.0,2623.9,0.76217]
[1751997215526,5.11287,2624.5,2623.6,0.76228]
[1751997215726,58.70305,2625.3,2623.6,0.76228]
[1751997215727,1.35765357,2625.0,2624.3,6.97534004]
[1751997216027,0.76195,2624.8,2624.7,0.76195]
[1751997216225,1.74705,2624.8,2624.7,0.76195]
[1751997216427,0.9851,2624.8,2624.7,0.76195]
[1751997216623,1.2845,2624.9,2624.8,0.76193]
[1751997216824,0.76191,2624.9,2624.6,3.2078]
[1751997217125,3.03673,2624.8,2624.7,0.76196]
[1751997217821,0.76198,2624.7,2624.6,0.76196]
[1751997218019,0.762,2624.6,2624.5,0.762]
[1751997218222,3.96968,2625.0,2624.9,0.7619]
[1751997218423,0.76192,2624.9,2624.8,0.76191]
[1751997218625,1.2897,2624.9,2624.8,0.76191]
[1751997218822,4.66107,2625.1,2625.0,0.76187]
[1751997219126,0.76189,2625.0,2624.9,0.76189]
[1751997219321,2.05159,2625.0,2624.9,0.76189]
[1751997219722,0.76194,2624.8,2624.7,0.76193]
[1751997219922,1.2897,2625.0,2624.9,0.7619]
[1751997220423,0.6914,2625.1,2625.0,0.76187]
[1751997220832,1.45324,2625.1,2625.0,0.76187]
[1751997221733,0.7619,2625.0,2624.9,0.76188]
[1751997222230,2.1456,2625.0,2624.9,0.76188]
[1751997222430,3.1307,2625.0,2624.9,0.76188]
[1751997222923,0.76196,2624.8,2624.7,0.76192]
[1751997223128,0.76194,2624.9,2624.8,0.76191]
[1751997223429,0.76194,2624.9,2624.3,5.70322]
[1751997223430,0.76193,2624.9,2624.7,0.76194]
[1751997223628,3.8992,2625.1,2624.8,0.76193]
[1751997223834,4.66105,2625.1,2625.0,0.76187]
[1751997224331,3.8992,2625.1,2624.8,3.76754004]
[1751997224534,0.76191,2625.0,2624.9,0.7619]
[1751997225229,0.9851,2625.2,2625.0,0.76187]
[1751997225430,0.9851,2625.2,2624.4,29.384]
[1751997225431,1.90403,2625.9,2625.1,6.97534004]
[1751997225628,0.76177,2625.5,2625.4,3.2078]
[1751997226132,0.76171,2625.6,2625.5,0.7617]
[1751997226528,2.42147,2625.8,2625.7,0.76167]
[1751997226836,2.42147,2625.8,2625.7,3.2078]
[1751997227025,1.6598,2625.8,2625.7,3.96947]
[1751997227225,0.9851,2625.8,2625.7,3.96947]
[1751997227636,1.74674,2625.8,2625.7,3.96947]
[1751997228133,0.9851,2625.8,2625.7,3.96947]
[1751997228532,0.6539,2626.1,2625.7,3.2078]
[1751997228729,0.6539,2626.1,2625.9,0.76158]
[1751997228730,0.76159,2626.0,2625.9,0.76158]
[1751997228934,0.76164,2625.8,2625.7,3.2078]
[1751997229135,0.9851,2626.0,2625.9,0.76161]
[1751997229331,0.9851,2626.0,2625.9,3.2078]
[1751997229332,1.74671,2626.0,2625.9,3.2078]
[1751997230034,1.74671,2626.0,2625.9,3.96941]
[1751997230232,0.76161,2626.0,2625.9,3.96941]
[1751997230433,1.41547,2626.1,2626.0,0.76158]
[1751997230836,0.76158,2626.0,2625.9,7.34804097]
[1751997231435,0.76156,2626.2,2626.1,0.76153]
[1751997231633,1.90362,2626.5,2625.9,6.58645097]
[1751997231634,0.76148,2626.4,2626.3,0.76148]
[1751997231830,0.76149,2626.3,2626.2,3.2078]
[1751997232134,0.76161,2625.9,2625.8,3.2078]
[1751997232338,0.76155,2626.2,2626.1,0.76153]
[1751997232635,0.76155,2626.2,2626.1,6.58645097]
[1751997232936,0.76152,2626.2,2626.1,7.34798097]
[1751997233336,0.76152,2626.3,2626.2,0.7615]
[1751997233531,0.76152,2626.2,2626.1,6.58645097]
[1751997233929,0.76152,2626.2,2626.1,7.34800097]
[1751997234130,0.76152,2626.2,2626.1,6.58645097]
[1751997234631,0.76152,2626.2,2625.7,1.3416]
[1751997234632,0.76161,2625.9,2625.8,3.2078]
[1751997234834,0.76161,2625.9,2625.8,6.58645097]
[1751997235029,0.76158,2626.0,2625.9,0.76159]
[1751997236635,0.76161,2625.9,2625.8,3.96942]
[1751997236835,0.7616,2626.0,2625.9,0.76158]
[1751997237040,0.76161,2625.9,2625.8,7.34807097]
[1751997237840,0.76161,2625.9,2625.8,6.58645097]
[1751997238038,0.7616,2626.0,2625.9,0.76158]
[1751997239344,1.40257,2626.1,2626.0,0.76158]
[1751997239941,0.76157,2626.1,2626.0,0.76158]
[1751997240437,0.76153,2626.3,2626.2,0.7615]
[1751997240738,0.6818,2626.4,2626.3,0.76149]
[1751997240935,0.6818,2626.4,2626.2,6.58645097]
[1751997240936,1.0028,2626.8,2626.2,6.58645097]
[1751997241138,2.12152723,2627.6,2626.7,3.37865097]
[1751997241341,2.12152723,2627.6,2626.3,54.9084]
[1751997241342,0.76132,2627.0,2626.9,3.2078]
[1751997241541,0.76132,2627.0,2626.9,6.58645097]
[1751997242235,0.76129,2627.0,2626.9,3.37865097]
[1751997243542,0.76129,2627.0,2626.3,3.2078]
[1751997243543,0.76147,2626.4,2626.3,3.2078]
[1751997243744,0.76155,2626.1,2626.0,3.37865097]
[1751997244241,5.11173,2626.1,2625.7,3.37865097]
[1751997244441,0.76164,2625.8,2625.7,3.37865097]
[1751997244642,1.76444,2625.8,2625.7,3.37865097]
[1751997244944,1.76444,2625.8,2625.6,2.23282272]
[1751997244945,0.76167,2625.7,2625.6,2.23282272]
[1751997245145,1.76445,2625.8,2625.6,5.61148855]
[1751997245342,1.0028,2625.8,2625.7,2.23283758]
[1751997245546,1.76444,2625.8,2625.7,2.23283758]
[1751997245739,3.2078,2626.4,2625.7,2.23283758]
[1751997245947,4.51766247,2628.6,2628.5,0.76086]
[1751997246142,5.65711891,2629.2,2628.5,19.12210194]
[1751997246349,0.76065,2629.2,2629.1,3.2078]
[1751997246548,0.6843,2629.7,2629.1,3.2078]
[1751997246752,2.66423,2629.3,2629.2,3.37865097]
[1751997246951,3.68630398,2629.7,2629.1,6.58645097]
[1751997247141,3.68630398,2629.7,2628.8,28.958]
[1751997247142,0.76054,2629.6,2629.5,3.2078]
[1751997247347,1.76334,2629.6,2629.5,2.36075]
[1751997247547,11.1142,2629.6,2628.9,3.2078]
[1751997247748,2.66431,2629.0,2628.9,3.2078]
[1751997247944,3.66711,2629.0,2628.9,3.2078]
[1751997248157,7.9064,2629.0,2628.3,3.2078]
[1751997248450,2.66449,2628.4,2628.3,6.58645097]
[1751997248641,3.66729,2628.4,2628.3,3.2078]
[1751997248841,3.66729,2628.4,2628.3,3.73422392]
[1751997249747,2.9064,2628.4,2628.3,4.09101144]
[1751997249949,2.66449,2628.4,2628.3,4.09101144]
[1751997250150,3.66729,2628.4,2628.3,4.09101144]
[1751997250851,2.66449,2628.4,2628.3,4.09101144]
[1751997251052,3.66729,2628.4,2628.3,4.09101144]
[1751997251946,8.66729,2628.4,2628.3,0.88321144]
[1751997252451,8.66729,2628.4,2628.3,2.56942461]
[1751997253251,3.66729,2628.4,2628.3,2.56942461]
[1751997253448,2.66449,2628.4,2628.3,2.56942461]
[1751997253651,2.66449,2628.4,2628.3,5.77722461]
[1751997253852,0.76089,2628.4,2628.3,5.77722461]
[1751997254848,3.66729,2628.4,2628.3,5.77722461]
[1751997255351,3.66729,2628.4,2628.3,5.76992498]
[1751997255647,3.66729,2628.4,2628.3,4.08371181]
[1751997255849,3.66729,2628.4,2628.3,3.73422392]
[1751997256752,3.66729,2628.4,2628.3,4.09105105]
[1751997256947,3.66729,2628.4,2628.3,4.61155573]
[1751997257554,3.66729,2628.4,2628.3,4.61168713]
[1751997257749,0.76089,2628.4,2628.3,4.61168713]
[1751997257955,0.76089,2628.4,2628.3,4.25486]
[1751997258156,3.66729,2628.4,2628.3,4.25486]
[1751997258652,3.66729,2628.4,2628.3,1.04706]
[1751997258853,1.9036,2627.7,2627.3,3.35947919]
[1751997259160,0.76135,2626.8,2626.7,4.48677186]
[1751997259449,0.76135,2626.8,2626.7,6.1759091]
[1751997259654,2.66495,2626.8,2626.7,6.1759091]
[1751997259855,0.76138,2626.7,2626.6,4.48677186]
[1751997260044,0.76138,2626.7,2626.5,4.48677186]
[1751997260045,0.76141,2626.6,2626.5,4.48677186]
[1751997260250,2.66504,2626.5,2626.4,3.2078]
[1751997260453,3.2078,2627.1,2626.4,6.96083398]
[1751997260652,0.76141,2626.7,2626.5,0.76143]
[1751997260958,2.66504,2626.5,2626.4,3.2078]
[1751997261353,0.76144,2626.5,2626.4,3.2078]
[1751997261650,1.90317,2627.1,2626.4,3.2078]
[1751997261854,0.76142,2626.6,2626.4,3.2078]
[1751997262051,0.76142,2626.6,2626.4,3.96925]
[1751997262246,0.76144,2626.5,2626.4,3.96925]
[1751997262452,0.76144,2626.5,2626.4,3.2078]
[1751997262453,2.66504,2626.5,2626.4,3.2078]
[1751997262653,0.76144,2626.5,2626.4,3.2078]
[1751997264256,0.76144,2626.5,2626.1,4.48677186]
[1751997264556,1.3077,2626.7,2626.1,4.48677186]
[1751997264557,1.9036,2626.3,2626.1,3.96934]
[1751997264758,0.76152,2626.2,2626.1,3.2078]
[1751997265459,0.76152,2626.2,2626.1,3.96934]